[Event "*** SCC Grand Prix: Titled Tuesday Blitz"]
[Site "Chess.com"]
[Date "2020.06.09"]
[Round "1"]
[White "robertofabregas"]
[Black "IriBu"]
[Result "0-1"]
[WhiteElo "2104"]
[BlackElo "2516"]
[TimeControl "180+1"]
[EndTime "9:09:54 PDT"]
[Termination "IriBu won by checkmate"]

1. c4 {[%clk 0:02:58.8]} 1... e5 {[%clk 0:02:58.8]} 2. Nc3 {[%clk 0:02:58]} 2...
Nf6 {[%clk 0:02:56.4]} 3. Nf3 {[%clk 0:02:58.3]} 3... Nc6 {[%clk 0:02:55.8]} 4.
g3 {[%clk 0:02:58.5]} 4... Bc5 {[%clk 0:02:54.2]} 5. Bg2 {[%clk 0:02:57.7]} 5...
d6 {[%clk 0:02:52.4]} 6. O-O {[%clk 0:02:56]} 6... O-O {[%clk 0:02:50.1]} 7. e3
{[%clk 0:02:52]} 7... Bg4 {[%clk 0:02:43.4]} 8. Qb3 {[%clk 0:02:51.1]} 8... Qd7
{[%clk 0:02:40.5]} 9. d3 {[%clk 0:02:23.3]} 9... Rab8 {[%clk 0:02:32.9]} 10. a3
{[%clk 0:02:22.5]} 10... Bh3 {[%clk 0:02:31.8]} 11. Nd2 {[%clk 0:02:21.6]} 11...
Bxg2 {[%clk 0:02:29.2]} 12. Kxg2 {[%clk 0:02:22.5]} 12... Nh5 {[%clk 0:02:21.8]}
13. Nde4 {[%clk 0:02:20.2]} 13... Bb6 {[%clk 0:02:19.1]} 14. Nd5 {[%clk
0:02:14.4]} 14... Kh8 {[%clk 0:02:13.3]} 15. Nxb6 {[%clk 0:02:12.8]} 15... axb6
{[%clk 0:02:12.8]} 16. Qd1 {[%clk 0:02:11.9]} 16... g6 {[%clk 0:02:09.7]} 17. d4
{[%clk 0:02:04.5]} 17... f5 {[%clk 0:02:07.3]} 18. Ng5 {[%clk 0:01:52.9]} 18...
Qe7 {[%clk 0:01:51.6]} 19. h4 {[%clk 0:01:42.1]} 19... h6 {[%clk 0:01:42.7]} 20.
Nh3 {[%clk 0:01:42.2]} 20... Kh7 {[%clk 0:01:42.1]} 21. d5 {[%clk 0:01:26.7]}
21... Nd8 {[%clk 0:01:40.6]} 22. b4 {[%clk 0:01:19.3]} 22... Nf7 {[%clk
0:01:25.4]} 23. Bb2 {[%clk 0:01:18.8]} 23... Nf6 {[%clk 0:01:22.7]} 24. f3
{[%clk 0:01:06.5]} 24... Rg8 {[%clk 0:01:13.4]} 25. Kh2 {[%clk 0:00:55.7]} 25...
g5 {[%clk 0:01:11.6]} 26. Rg1 {[%clk 0:00:47]} 26... g4 {[%clk 0:01:04.6]} 27.
Nf2 {[%clk 0:00:42.9]} 27... h5 {[%clk 0:00:56.2]} 28. f4 {[%clk 0:00:40.4]}
28... Nd7 {[%clk 0:00:43.8]} 29. Re1 {[%clk 0:00:35.3]} 29... Rbe8 {[%clk
0:00:42.7]} 30. Qd2 {[%clk 0:00:33.8]} 30... Nf6 {[%clk 0:00:39]} 31. Re2 {[%clk
0:00:28.6]} 31... Qd7 {[%clk 0:00:33.3]} 32. Rae1 {[%clk 0:00:27.1]} 32... c6
{[%clk 0:00:32.3]} 33. Qc2 {[%clk 0:00:27.1]} 33... cxd5 {[%clk 0:00:31.3]} 34.
fxe5 {[%clk 0:00:24.6]} 34... Nxe5 {[%clk 0:00:29]} 35. cxd5 {[%clk 0:00:24.3]}
35... Nxd5 {[%clk 0:00:26.8]} 36. Bxe5 {[%clk 0:00:23.7]} 36... Rxe5 {[%clk
0:00:26.5]} 37. e4 {[%clk 0:00:24.1]} 37... Rc8 {[%clk 0:00:17.5]} 38. Qd3
{[%clk 0:00:23.8]} 38... Nf6 {[%clk 0:00:16.5]} 39. exf5 {[%clk 0:00:24]} 39...
Rxe2 {[%clk 0:00:14.4]} 40. Rxe2 {[%clk 0:00:24.9]} 40... Rf8 {[%clk 0:00:14.7]}
41. Re6 {[%clk 0:00:25]} 41... d5 {[%clk 0:00:14]} 42. Qd4 {[%clk 0:00:24.7]}
42... Qg7 {[%clk 0:00:13]} 43. Nd3 {[%clk 0:00:23.6]} 43... Ne4 {[%clk
0:00:12.6]} 44. Qxg7+ {[%clk 0:00:23.8]} 44... Kxg7 {[%clk 0:00:12.7]} 45. Rg6+
{[%clk 0:00:24.1]} 45... Kf7 {[%clk 0:00:11.4]} 46. Nf4 {[%clk 0:00:24.6]} 46...
d4 {[%clk 0:00:10.5]} 47. Rh6 {[%clk 0:00:24.6]} 47... Ke7 {[%clk 0:00:10.6]}
48. Rh7+ {[%clk 0:00:24.8]} 48... Rf7 {[%clk 0:00:09.9]} 49. Rxh5 {[%clk
0:00:25]} 49... Kd6 {[%clk 0:00:08.9]} 50. Rh6+ {[%clk 0:00:25.1]} 50... Ke5
{[%clk 0:00:09.4]} 51. Re6+ {[%clk 0:00:25.4]} 51... Kxf5 {[%clk 0:00:09.9]} 52.
Rxb6 {[%clk 0:00:25.1]} 52... Rd7 {[%clk 0:00:09.4]} 53. Rb5+ {[%clk 0:00:25.3]}
53... Kf6 {[%clk 0:00:09.3]} 54. Rd5 {[%clk 0:00:25.4]} 54... Rxd5 {[%clk
0:00:08.8]} 55. Nxd5+ {[%clk 0:00:26.3]} 55... Ke5 {[%clk 0:00:09]} 56. Nf4
{[%clk 0:00:26.7]} 56... Nf6 {[%clk 0:00:09.2]} 57. h5 {[%clk 0:00:27.2]} 57...
Ke4 {[%clk 0:00:09.4]} 58. h6 {[%clk 0:00:27.1]} 58... d3 {[%clk 0:00:10]} 59.
Nxd3 {[%clk 0:00:27.1]} 59... Kxd3 {[%clk 0:00:10.2]} 60. Kg2 {[%clk 0:00:28]}
60... b5 {[%clk 0:00:08.6]} 61. Kf2 {[%clk 0:00:28.9]} 61... Nh7 {[%clk
0:00:08.4]} 62. a4 {[%clk 0:00:29.1]} 62... bxa4 {[%clk 0:00:08.2]} 63. b5
{[%clk 0:00:29.4]} 63... a3 {[%clk 0:00:08.8]} 64. b6 {[%clk 0:00:28.9]} 64...
a2 {[%clk 0:00:09.7]} 65. b7 {[%clk 0:00:29.3]} 65... a1=Q {[%clk 0:00:10.6]}
66. b8=Q {[%clk 0:00:29.9]} 66... Qd4+ {[%clk 0:00:09.6]} 67. Kg2 {[%clk
0:00:30.2]} 67... Qe4+ {[%clk 0:00:09.9]} 68. Kg1 {[%clk 0:00:28.7]} 68... Qe1+
{[%clk 0:00:10]} 69. Kg2 {[%clk 0:00:29.2]} 69... Qe2+ {[%clk 0:00:10.5]} 70.
Kg1 {[%clk 0:00:29.6]} 70... Qe3+ {[%clk 0:00:10.6]} 71. Kg2 {[%clk 0:00:30]}
71... Qf3+ {[%clk 0:00:10.7]} 72. Kh2 {[%clk 0:00:29.2]} 72... Qf2+ {[%clk
0:00:11.2]} 73. Kh1 {[%clk 0:00:29.5]} 73... Qf1+ {[%clk 0:00:11.4]} 74. Kh2
{[%clk 0:00:29.7]} 74... Qe2+ {[%clk 0:00:11.9]} 75. Kh1 {[%clk 0:00:29.7]}
75... Kd2 {[%clk 0:00:12.4]} 76. Qd6+ {[%clk 0:00:27.8]} 76... Ke1 {[%clk
0:00:12.3]} 77. Qb4+ {[%clk 0:00:27.3]} 77... Kf1 {[%clk 0:00:12.6]} 78. Qb1+
{[%clk 0:00:25.9]} 78... Kf2 {[%clk 0:00:12]} 79. Qg1+ {[%clk 0:00:21.3]} 79...
Kf3 {[%clk 0:00:12.2]} 80. Qh2 {[%clk 0:00:15.7]} 80... Qf1+ {[%clk 0:00:11.2]}
81. Qg1 {[%clk 0:00:15.9]} 81... Qh3+ {[%clk 0:00:10.7]} 82. Qh2 {[%clk
0:00:16]} 82... Qxh2+ {[%clk 0:00:10.7]} 83. Kxh2 {[%clk 0:00:16.1]} 83... Kf2
{[%clk 0:00:11.2]} 84. Kh1 {[%clk 0:00:16]} 84... Kxg3 {[%clk 0:00:12.1]} 85.
Kg1 {[%clk 0:00:16.6]} 85... Kf3 {[%clk 0:00:12.3]} 86. Kh1 {[%clk 0:00:17.5]}
86... g3 {[%clk 0:00:12.7]} 87. Kg1 {[%clk 0:00:17.9]} 87... g2 {[%clk
0:00:13.6]} 88. Kh2 {[%clk 0:00:16.3]} 88... Kf2 {[%clk 0:00:14.5]} 89. Kh3
{[%clk 0:00:16.2]} 89... g1=Q {[%clk 0:00:14.5]} 90. Kh4 {[%clk 0:00:16.9]}
90... Kf3 {[%clk 0:00:14.4]} 91. Kh5 {[%clk 0:00:16.7]} 91... Qg5# {[%clk
0:00:13.9]} 0-1

[Event "*** SCC Grand Prix: Titled Tuesday Blitz"]
[Site "Chess.com"]
[Date "2020.06.09"]
[Round "1"]
[White "Twitch_ElhamBlitz05"]
[Black "Haapana"]
[Result "1/2-1/2"]
[WhiteElo "2744"]
[BlackElo "2410"]
[TimeControl "180+1"]
[EndTime "9:10:50 PDT"]
[Termination "Game drawn by 50-move rule"]

1. e4 {[%clk 0:03:00.9]} 1... c6 {[%clk 0:02:57.2]} 2. d4 {[%clk 0:03:00.6]}
2... d5 {[%clk 0:02:57.7]} 3. Nc3 {[%clk 0:03:00.5]} 3... dxe4 {[%clk
0:02:56.6]} 4. Nxe4 {[%clk 0:03:01.4]} 4... Bf5 {[%clk 0:02:56.3]} 5. Ng3 {[%clk
0:03:00.8]} 5... Bg6 {[%clk 0:02:56.9]} 6. h4 {[%clk 0:03:00.9]} 6... h6 {[%clk
0:02:56]} 7. Nf3 {[%clk 0:03:01.6]} 7... Nd7 {[%clk 0:02:54.8]} 8. h5 {[%clk
0:03:02.5]} 8... Bh7 {[%clk 0:02:54.3]} 9. Bd3 {[%clk 0:03:02.3]} 9... Bxd3
{[%clk 0:02:53.5]} 10. Qxd3 {[%clk 0:03:03.2]} 10... e6 {[%clk 0:02:51.2]} 11.
Bd2 {[%clk 0:03:03.3]} 11... Ngf6 {[%clk 0:02:50]} 12. O-O-O {[%clk 0:03:02.8]}
12... Be7 {[%clk 0:02:49.7]} 13. Qe2 {[%clk 0:03:02.4]} 13... a5 {[%clk
0:02:29.4]} 14. Nf1 {[%clk 0:02:57.8]} 14... Bb4 {[%clk 0:02:10.6]} 15. c3
{[%clk 0:02:46.8]} 15... Be7 {[%clk 0:02:08.7]} 16. g4 {[%clk 0:02:45.7]} 16...
a4 {[%clk 0:02:04.7]} 17. g5 {[%clk 0:02:41]} 17... hxg5 {[%clk 0:02:03.2]} 18.
Bxg5 {[%clk 0:02:41.9]} 18... Qa5 {[%clk 0:02:01.1]} 19. Qc2 {[%clk 0:02:25.4]}
19... Qd5 {[%clk 0:01:55.6]} 20. Ne5 {[%clk 0:02:17.8]} 20... Qxa2 {[%clk
0:01:49.5]} 21. Nxd7 {[%clk 0:02:16.1]} 21... Kxd7 {[%clk 0:01:34.9]} 22. Bxf6
{[%clk 0:02:06.9]} 22... Bxf6 {[%clk 0:01:30.4]} 23. Ne3 {[%clk 0:02:07.2]}
23... Bg5 {[%clk 0:00:59.6]} 24. Qb1 {[%clk 0:01:57.5]} 24... Qb3 {[%clk
0:00:50]} 25. Qc2 {[%clk 0:01:56.9]} 25... Qa2 {[%clk 0:00:25.9]} 26. Rdg1
{[%clk 0:01:56.3]} 26... Bh6 {[%clk 0:00:21.4]} 27. Kd2 {[%clk 0:01:53.4]} 27...
a3 {[%clk 0:00:17.6]} 28. b3 {[%clk 0:01:49.4]} 28... Qxc2+ {[%clk 0:00:16.1]}
29. Kxc2 {[%clk 0:01:50.3]} 29... Bxe3 {[%clk 0:00:14.4]} 30. fxe3 {[%clk
0:01:51.2]} 30... Rh7 {[%clk 0:00:14.4]} 31. b4 {[%clk 0:01:48.4]} 31... Rah8
{[%clk 0:00:12.9]} 32. Kb3 {[%clk 0:01:46.6]} 32... Ke7 {[%clk 0:00:13.1]} 33.
Ra1 {[%clk 0:01:36.6]} 33... Rxh5 {[%clk 0:00:12]} 34. Rxh5 {[%clk 0:01:37.5]}
34... Rxh5 {[%clk 0:00:12.1]} 35. Rxa3 {[%clk 0:01:38.4]} 35... Kd7 {[%clk
0:00:10.9]} 36. e4 {[%clk 0:01:36.7]} 36... Kc7 {[%clk 0:00:10.2]} 37. e5 {[%clk
0:01:36.1]} 37... g5 {[%clk 0:00:07.8]} 38. Ra1 {[%clk 0:01:22.2]} 38... g4
{[%clk 0:00:08.7]} 39. Rg1 {[%clk 0:01:22.3]} 39... Rg5 {[%clk 0:00:07.3]} 40.
Rg3 {[%clk 0:01:22.8]} 40... b5 {[%clk 0:00:06]} 41. Kc2 {[%clk 0:01:22.2]}
41... Kd7 {[%clk 0:00:06.3]} 42. Kd3 {[%clk 0:01:22.9]} 42... Ke7 {[%clk
0:00:07]} 43. Ke4 {[%clk 0:01:23.6]} 43... f5+ {[%clk 0:00:07]} 44. exf6+ {[%clk
0:01:24.5]} 44... Kxf6 {[%clk 0:00:07.1]} 45. Kf4 {[%clk 0:01:25.4]} 45... e5+
{[%clk 0:00:04.3]} 46. dxe5+ {[%clk 0:01:25.1]} 46... Rxe5 {[%clk 0:00:05.2]}
47. Rxg4 {[%clk 0:01:24.2]} 47... Re1 {[%clk 0:00:03.4]} 48. Rh4 {[%clk
0:01:23.7]} 48... Ke6 {[%clk 0:00:03.5]} 49. Rh6+ {[%clk 0:01:20.1]} 49... Kd5
{[%clk 0:00:03.7]} 50. Rh5+ {[%clk 0:01:20.8]} 50... Kd6 {[%clk 0:00:03.1]} 51.
Rc5 {[%clk 0:01:20.2]} 51... Rf1+ {[%clk 0:00:02.2]} 52. Ke3 {[%clk 0:01:20.9]}
52... Re1+ {[%clk 0:00:03.1]} 53. Kf4 {[%clk 0:01:13.6]} 53... Re6 {[%clk
0:00:04]} 54. Rh5 {[%clk 0:01:12.2]} 54... Rf6+ {[%clk 0:00:04.1]} 55. Ke3
{[%clk 0:01:12.2]} 55... Re6+ {[%clk 0:00:05]} 56. Kd3 {[%clk 0:01:12.2]} 56...
Rf6 {[%clk 0:00:05.9]} 57. Rh4 {[%clk 0:01:11.8]} 57... Re6 {[%clk 0:00:06.8]}
58. Kd4 {[%clk 0:01:11.9]} 58... Rf6 {[%clk 0:00:06.6]} 59. Rh8 {[%clk
0:01:10.5]} 59... Re6 {[%clk 0:00:07.5]} 60. Rd8+ {[%clk 0:01:10.4]} 60... Kc7
{[%clk 0:00:07.4]} 61. Rg8 {[%clk 0:01:09.9]} 61... Kd6 {[%clk 0:00:07.8]} 62.
Kd3 {[%clk 0:01:10.1]} 62... Rf6 {[%clk 0:00:07.6]} 63. Rg5 {[%clk 0:01:09.1]}
63... Re6 {[%clk 0:00:07.7]} 64. Kc2 {[%clk 0:01:08.3]} 64... Rf6 {[%clk
0:00:07.9]} 65. Kd2 {[%clk 0:01:05.9]} 65... Re6 {[%clk 0:00:08]} 66. Rh5 {[%clk
0:01:05.7]} 66... Rf6 {[%clk 0:00:08.3]} 67. Ke3 {[%clk 0:01:06.3]} 67... Re6+
{[%clk 0:00:08.7]} 68. Kd3 {[%clk 0:00:53.2]} 68... Rf6 {[%clk 0:00:08.8]} 69.
Rh1 {[%clk 0:00:53.9]} 69... Re6 {[%clk 0:00:08.8]} 70. Ra1 {[%clk 0:00:54.5]}
70... Rf6 {[%clk 0:00:08.5]} 71. Ra6 {[%clk 0:00:55.1]} 71... Re6 {[%clk
0:00:08.4]} 72. Kd4 {[%clk 0:00:55.1]} 72... Rg6 {[%clk 0:00:07.5]} 73. Kd3
{[%clk 0:00:54.4]} 73... Rh6 {[%clk 0:00:07.7]} 74. Kc2 {[%clk 0:00:54.7]} 74...
Rg6 {[%clk 0:00:07.7]} 75. c4 {[%clk 0:00:38.9]} 75... bxc4 {[%clk 0:00:07]} 76.
Kc3 {[%clk 0:00:37.1]} 76... Rg4 {[%clk 0:00:06.3]} 77. b5 {[%clk 0:00:37.1]}
77... Kc5 {[%clk 0:00:05.1]} 78. bxc6 {[%clk 0:00:37.4]} 78... Kd6 {[%clk
0:00:05.3]} 79. Kb4 {[%clk 0:00:34.5]} 79... Kc7 {[%clk 0:00:05.6]} 80. Kc5
{[%clk 0:00:30]} 80... Rg5+ {[%clk 0:00:05.6]} 81. Kxc4 {[%clk 0:00:30]} 81...
Rh5 {[%clk 0:00:06.2]} 82. Kd4 {[%clk 0:00:28.1]} 82... Rg5 {[%clk 0:00:06.4]}
83. Ra7+ {[%clk 0:00:28.8]} 83... Kxc6 {[%clk 0:00:05.9]} 84. Rf7 {[%clk
0:00:29.7]} 84... Kd6 {[%clk 0:00:05.7]} 85. Rf6+ {[%clk 0:00:30.2]} 85... Ke7
{[%clk 0:00:05.8]} 86. Ra6 {[%clk 0:00:31.1]} 86... Kd7 {[%clk 0:00:05.7]} 87.
Ke4 {[%clk 0:00:31.6]} 87... Rb5 {[%clk 0:00:04.8]} 88. Kf4 {[%clk 0:00:32.5]}
88... Kc7 {[%clk 0:00:05]} 89. Rg6 {[%clk 0:00:33]} 89... Kb7 {[%clk 0:00:05.3]}
90. Rg7+ {[%clk 0:00:33.7]} 90... Ka6 {[%clk 0:00:04.8]} 91. Ke4 {[%clk
0:00:34.6]} 91... Ka5 {[%clk 0:00:05.3]} 92. Kd4 {[%clk 0:00:35]} 92... Rb4+
{[%clk 0:00:05.1]} 93. Kc5 {[%clk 0:00:34.9]} 93... Rb5+ {[%clk 0:00:06]} 94.
Kc4 {[%clk 0:00:34.9]} 94... Rb4+ {[%clk 0:00:06.2]} 95. Kc3 {[%clk 0:00:35.6]}
95... Rb5 {[%clk 0:00:07.1]} 96. Rg6 {[%clk 0:00:35]} 96... Rc5+ {[%clk
0:00:07.2]} 97. Kd4 {[%clk 0:00:34.8]} 97... Rb5 {[%clk 0:00:08.1]} 98. Rg8
{[%clk 0:00:32.8]} 98... Rb4+ {[%clk 0:00:08.1]} 99. Kc5 {[%clk 0:00:33.3]}
99... Rb5+ {[%clk 0:00:08.4]} 100. Kc6 {[%clk 0:00:33.9]} 100... Rb6+ {[%clk
0:00:08.4]} 101. Kc7 {[%clk 0:00:34.5]} 101... Rb5 {[%clk 0:00:08.2]} 102. Rg4
{[%clk 0:00:34.1]} 102... Rb4 {[%clk 0:00:08]} 103. Rg1 {[%clk 0:00:35]} 103...
Kb5 {[%clk 0:00:07.6]} 104. Rg5+ {[%clk 0:00:33.2]} 104... Ka4 {[%clk
0:00:07.4]} 105. Kc6 {[%clk 0:00:34.1]} 105... Kb3 {[%clk 0:00:07.6]} 106. Rg2
{[%clk 0:00:31.1]} 106... Rc4+ {[%clk 0:00:07]} 107. Kd5 {[%clk 0:00:31]} 107...
Rb4 {[%clk 0:00:07.2]} 108. Kc5 {[%clk 0:00:31.1]} 108... Rc4+ {[%clk
0:00:07.2]} 109. Kd5 {[%clk 0:00:31.9]} 109... Rb4 {[%clk 0:00:07.2]} 110. Rg3+
{[%clk 0:00:32.5]} 110... Ka4 {[%clk 0:00:06.9]} 111. Rg1 {[%clk 0:00:29.6]}
111... Rb5+ {[%clk 0:00:07]} 112. Kc6 {[%clk 0:00:28.9]} 112... Rb4 {[%clk
0:00:06.9]} 113. Ra1+ {[%clk 0:00:28.8]} 113... Kb3 {[%clk 0:00:06.5]} 114. Kc5
{[%clk 0:00:29.6]} 114... Rc4+ {[%clk 0:00:06.7]} 115. Kd5 {[%clk 0:00:30.1]}
115... Rb4 {[%clk 0:00:06.7]} 116. Rb1+ {[%clk 0:00:29.1]} 116... Ka4 {[%clk
0:00:06.5]} 117. Rg1 {[%clk 0:00:30]} 117... Kb5 {[%clk 0:00:06.4]} 118. Rg8
{[%clk 0:00:29.8]} 118... Ka4 {[%clk 0:00:06.6]} 119. Kc5 {[%clk 0:00:30.2]}
119... Rb5+ {[%clk 0:00:05.7]} 120. Kc4 {[%clk 0:00:31.1]} 120... Rb4+ {[%clk
0:00:05.9]} 121. Kc3 {[%clk 0:00:32]} 121... Rb3+ {[%clk 0:00:06.1]} 122. Kc2
{[%clk 0:00:32.3]} 122... Rb4 {[%clk 0:00:06.4]} 123. Rc8 {[%clk 0:00:31.6]}
123... Rb5 {[%clk 0:00:05.9]} 124. Rc6 {[%clk 0:00:29]} 124... Rb4 {[%clk
0:00:05.8]} 125. Rc3 {[%clk 0:00:28.8]} 125... Rb5 {[%clk 0:00:05.4]} 126. Rg3
{[%clk 0:00:29]} 126... Ka5 {[%clk 0:00:05.5]} 127. Rg6 {[%clk 0:00:28.9]}
127... Rb6 {[%clk 0:00:04.9]} 128. Rg8 {[%clk 0:00:29.5]} 128... Rb5 {[%clk
0:00:05.8]} 129. Kc3 {[%clk 0:00:29.9]} 129... Rb6 {[%clk 0:00:05.5]} 130. Ra8+
{[%clk 0:00:28.4]} 130... Ra6 {[%clk 0:00:05.7]} 131. Rf8 {[%clk 0:00:29.3]}
131... Rb6 {[%clk 0:00:05.7]} 132. Kc4 {[%clk 0:00:28.7]} 132... Rc6+ {[%clk
0:00:05.8]} 133. Kd5 {[%clk 0:00:28.7]} 133... Rb6 {[%clk 0:00:06.7]} 1/2-1/2

[Event "*** SCC Grand Prix: Titled Tuesday Blitz"]
[Site "Chess.com"]
[Date "2020.06.09"]
[Round "2"]
[White "dey2580"]
[Black "goldenpuppy"]
[Result "1-0"]
[WhiteElo "2443"]
[BlackElo "2199"]
[TimeControl "180+1"]
[EndTime "9:12:33 PDT"]
[Termination "dey2580 won by checkmate"]

1. d4 {[%clk 0:03:00.9]} 1... Nf6 {[%clk 0:02:59.6]} 2. Nf3 {[%clk 0:03:00.4]}
2... e6 {[%clk 0:02:59.8]} 3. e3 {[%clk 0:02:59.4]} 3... c5 {[%clk 0:02:59.8]}
4. b3 {[%clk 0:02:59]} 4... d5 {[%clk 0:02:59.9]} 5. Bb2 {[%clk 0:02:59]} 5...
Nc6 {[%clk 0:03:00.5]} 6. Nbd2 {[%clk 0:02:58.2]} 6... Be7 {[%clk 0:03:00.8]} 7.
a3 {[%clk 0:02:57.8]} 7... O-O {[%clk 0:03:00.8]} 8. Bd3 {[%clk 0:02:58.4]} 8...
b6 {[%clk 0:03:01]} 9. O-O {[%clk 0:02:58.4]} 9... Bb7 {[%clk 0:03:01.3]} 10.
Qe2 {[%clk 0:02:58.7]} 10... Rc8 {[%clk 0:03:00]} 11. Rfd1 {[%clk 0:02:55.4]}
11... Nd7 {[%clk 0:02:52.9]} 12. Rac1 {[%clk 0:02:54.1]} 12... f6 {[%clk
0:02:47.3]} 13. c4 {[%clk 0:02:53.7]} 13... Qe8 {[%clk 0:02:39.9]} 14. dxc5
{[%clk 0:02:49.8]} 14... Nxc5 {[%clk 0:02:39.4]} 15. Bb1 {[%clk 0:02:49.6]}
15... dxc4 {[%clk 0:02:38.3]} 16. Nxc4 {[%clk 0:02:48]} 16... Qf7 {[%clk
0:02:37.9]} 17. b4 {[%clk 0:02:44.2]} 17... Na4 {[%clk 0:02:36.3]} 18. Qc2
{[%clk 0:02:44.1]} 18... Nxb2 {[%clk 0:02:36]} 19. Qxh7# {[%clk 0:02:43.5]} 1-0

[Event "*** SCC Grand Prix: Titled Tuesday Blitz"]
[Site "Chess.com"]
[Date "2020.06.09"]
[Round "2"]
[White "BIG_Pirate"]
[Black "Panterov"]
[Result "1-0"]
[WhiteElo "2425"]
[BlackElo "2137"]
[TimeControl "180+1"]
[EndTime "9:12:48 PDT"]
[Termination "BIG_Pirate won by resignation"]

1. Nf3 {[%clk 0:03:00.7]} 1... Nf6 {[%clk 0:02:56.1]} 2. c4 {[%clk 0:03:00.3]}
2... c5 {[%clk 0:02:55.4]} 3. Nc3 {[%clk 0:02:59.9]} 3... b6 {[%clk 0:02:55.4]}
4. g3 {[%clk 0:02:59.9]} 4... Bb7 {[%clk 0:02:54.9]} 5. Bg2 {[%clk 0:03:00.5]}
5... g6 {[%clk 0:02:55.3]} 6. O-O {[%clk 0:03:00.6]} 6... Bg7 {[%clk 0:02:55.8]}
7. b3 {[%clk 0:03:00.3]} 7... Nc6 {[%clk 0:02:53.5]} 8. Bb2 {[%clk 0:03:00.6]}
8... e6 {[%clk 0:02:52.1]} 9. d4 {[%clk 0:02:59.3]} 9... cxd4 {[%clk 0:02:52.3]}
10. Nxd4 {[%clk 0:02:58]} 10... d5 {[%clk 0:02:50.6]} 11. cxd5 {[%clk 0:02:48]}
11... Nxd4 {[%clk 0:02:45.9]} 12. Qxd4 {[%clk 0:02:47.2]} 12... exd5 {[%clk
0:02:43.7]} 13. Nxd5 {[%clk 0:02:32]} 13... Bxd5 {[%clk 0:02:31.2]} 14. Bxd5
{[%clk 0:02:30.7]} 1-0

[Event "*** SCC Grand Prix: Titled Tuesday Blitz"]
[Site "Chess.com"]
[Date "2020.06.09"]
[Round "2"]
[White "ChessWarrior7197"]
[Black "Haykos"]
[Result "1-0"]
[WhiteElo "2939"]
[BlackElo "2599"]
[TimeControl "180+1"]
[EndTime "9:14:07 PDT"]
[Termination "ChessWarrior7197 won by resignation"]

1. e4 {[%clk 0:03:00.9]} 1... c5 {[%clk 0:02:54.1]} 2. Nf3 {[%clk 0:03:00.6]}
2... e6 {[%clk 0:02:54.5]} 3. g3 {[%clk 0:03:00.4]} 3... b6 {[%clk 0:02:50.1]}
4. Bg2 {[%clk 0:02:59.8]} 4... Bb7 {[%clk 0:02:50.8]} 5. d4 {[%clk 0:02:59.5]}
5... Bxe4 {[%clk 0:02:45.9]} 6. Nc3 {[%clk 0:02:59.4]} 6... Bb7 {[%clk 0:02:46]}
7. d5 {[%clk 0:02:59]} 7... Nf6 {[%clk 0:02:45.1]} 8. Bg5 {[%clk 0:02:55.6]}
8... exd5 {[%clk 0:02:36.6]} 9. O-O {[%clk 0:02:53.4]} 9... d4 {[%clk
0:02:24.5]} 10. Re1+ {[%clk 0:02:52.7]} 10... Be7 {[%clk 0:02:24.4]} 11. Nxd4
{[%clk 0:02:52.6]} 11... Bxg2 {[%clk 0:02:23]} 12. Nf5 {[%clk 0:02:52.4]} 12...
Nc6 {[%clk 0:01:58.3]} 13. Nxg7+ {[%clk 0:02:40.1]} 13... Kf8 {[%clk 0:01:57.3]}
14. Bh6 {[%clk 0:02:40]} 14... Kg8 {[%clk 0:01:57.7]} 15. Kxg2 {[%clk
0:02:39.6]} 15... Bf8 {[%clk 0:01:56.4]} 16. Nf5 {[%clk 0:02:39.3]} 16... d5
{[%clk 0:01:48.4]} 17. Qd2 {[%clk 0:02:34.9]} 17... Ne4 {[%clk 0:01:27.5]} 18.
Nxe4 {[%clk 0:02:33]} 18... dxe4 {[%clk 0:01:28.4]} 19. Rxe4 {[%clk 0:02:32.6]}
19... Qxd2 {[%clk 0:01:26.4]} 20. Rg4+ {[%clk 0:02:31.8]} 1-0

[Event "*** SCC Grand Prix: Titled Tuesday Blitz"]
[Site "Chess.com"]
[Date "2020.06.09"]
[Round "2"]
[White "Dinamo81"]
[Black "cholzan"]
[Result "1-0"]
[WhiteElo "2622"]
[BlackElo "2335"]
[TimeControl "180+1"]
[EndTime "9:14:20 PDT"]
[Termination "Dinamo81 won by resignation"]

1. d4 {[%clk 0:03:00.9]} 1... d6 {[%clk 0:02:59.1]} 2. e4 {[%clk 0:03:00]} 2...
Nf6 {[%clk 0:02:58.4]} 3. Nc3 {[%clk 0:02:59.8]} 3... e5 {[%clk 0:02:59]} 4. Nf3
{[%clk 0:02:59.2]} 4... Nbd7 {[%clk 0:02:59.3]} 5. Rg1 {[%clk 0:02:58.7]} 5...
Be7 {[%clk 0:02:58.9]} 6. g4 {[%clk 0:02:57.5]} 6... exd4 {[%clk 0:02:53.4]} 7.
Nxd4 {[%clk 0:02:58.4]} 7... Nc5 {[%clk 0:02:53.6]} 8. Qf3 {[%clk 0:02:57.4]}
8... h5 {[%clk 0:02:46.3]} 9. g5 {[%clk 0:02:48]} 9... Ng4 {[%clk 0:02:46.1]}
10. h4 {[%clk 0:02:14.3]} 10... Be6 {[%clk 0:02:20.3]} 11. Bf4 {[%clk
0:02:06.2]} 11... Qd7 {[%clk 0:02:16.5]} 12. O-O-O {[%clk 0:02:04.1]} 12...
O-O-O {[%clk 0:02:15.1]} 13. Qg3 {[%clk 0:01:52.5]} 13... Na4 {[%clk 0:02:11.7]}
14. Bb5 {[%clk 0:01:47.2]} 1-0

[Event "*** SCC Grand Prix: Titled Tuesday Blitz"]
[Site "Chess.com"]
[Date "2020.06.09"]
[Round "2"]
[White "Firouzja2003"]
[Black "DenLaz"]
[Result "1-0"]
[WhiteElo "3131"]
[BlackElo "2632"]
[TimeControl "180+1"]
[EndTime "9:14:22 PDT"]
[Termination "Firouzja2003 won by resignation"]

1. e4 {[%clk 0:03:00.9]} 1... e5 {[%clk 0:03:00]} 2. Nf3 {[%clk 0:02:58.5]} 2...
Nc6 {[%clk 0:03:00]} 3. Bb5 {[%clk 0:02:58.7]} 3... a6 {[%clk 0:02:59.9]} 4. Ba4
{[%clk 0:02:58.9]} 4... Nf6 {[%clk 0:02:56.6]} 5. O-O {[%clk 0:02:59.1]} 5...
Be7 {[%clk 0:02:57]} 6. Re1 {[%clk 0:02:59.3]} 6... b5 {[%clk 0:02:56.2]} 7. Bb3
{[%clk 0:02:59.7]} 7... d6 {[%clk 0:02:56.7]} 8. c3 {[%clk 0:02:59.7]} 8... O-O
{[%clk 0:02:56.6]} 9. h3 {[%clk 0:02:58.9]} 9... Bb7 {[%clk 0:02:56.9]} 10. d4
{[%clk 0:02:58.5]} 10... Re8 {[%clk 0:02:57.3]} 11. Nbd2 {[%clk 0:02:58.9]}
11... Bf8 {[%clk 0:02:57.6]} 12. a4 {[%clk 0:02:57.3]} 12... h6 {[%clk
0:02:57.2]} 13. Bc2 {[%clk 0:02:57.9]} 13... exd4 {[%clk 0:02:56.5]} 14. cxd4
{[%clk 0:02:58.8]} 14... Nb4 {[%clk 0:02:56.8]} 15. Bb1 {[%clk 0:02:59.4]} 15...
c5 {[%clk 0:02:56.9]} 16. d5 {[%clk 0:02:59.6]} 16... Nd7 {[%clk 0:02:57.4]} 17.
Ra3 {[%clk 0:02:57.9]} 17... c4 {[%clk 0:02:57.2]} 18. Nd4 {[%clk 0:02:54.1]}
18... Nc5 {[%clk 0:02:49.4]} 19. axb5 {[%clk 0:02:52]} 19... Qf6 {[%clk
0:02:26.6]} 20. Nxc4 {[%clk 0:02:43.3]} 20... axb5 {[%clk 0:02:24.3]} 21. Rf3
{[%clk 0:02:35.2]} 21... Qd8 {[%clk 0:02:19.8]} 22. Na3 {[%clk 0:02:30.8]} 22...
Nba6 {[%clk 0:01:58.2]} 23. Naxb5 {[%clk 0:02:29.7]} 23... Qd7 {[%clk
0:01:58.5]} 24. Rg3 {[%clk 0:02:25.4]} 24... Kh8 {[%clk 0:01:56.7]} 25. Nc3
{[%clk 0:02:23.9]} 25... Nb4 {[%clk 0:01:54.8]} 26. Nf5 {[%clk 0:02:23.4]} 26...
Ba6 {[%clk 0:01:46.1]} 27. Bxh6 {[%clk 0:02:20.5]} 27... g6 {[%clk 0:01:43.8]}
28. Bxf8 {[%clk 0:02:19.7]} 28... Rxf8 {[%clk 0:01:44.7]} 29. Qd4+ {[%clk
0:02:19.7]} 29... f6 {[%clk 0:01:44.1]} 30. Rxg6 {[%clk 0:02:19.9]} 1-0